fUSD/lending_fUSD_20260628
["ID","MTS","AMOUNT","RATE_DAILY","PERIOD"]
[426590461,1782642644000,-500.0,0.00024999,2]
[426590462,1782642644000,-500.0,0.00024999,2]
[426590455,1782642644000,-789.72004864,0.00024999,2]
[426590459,1782642644000,-150.0,0.00024999,20]
[426590483,1782642644000,-1000.0,0.00024999,2]
[426590475,1782642644000,-1000.0,0.00024999,2]
[426590479,1782642644000,-1000.0,0.00024999,2]
[426590485,1782642644000,-1000.0,0.00024999,2]
[426590477,1782642644000,-1000.0,0.00024999,2]
[426590487,1782642644000,-1000.0,0.00024999,2]
[426590460,1782642644000,-500.0,0.00024999,2]
[426590527,1782642644000,-286.84486236,0.00025,2]
[426590583,1782642644000,-151.0,0.000258,2]
[426590524,1782642644000,-151.283412,0.00025,2]
[426590557,1782642644000,-150.0,0.00025675,7]
[426590555,1782642644000,-13180.25101397,0.00025549,2]
[426590560,1782642644000,-201.92253622,0.0002579,2]
[426590566,1782642644000,-151.0,0.00025799,2]
[426590570,1782642644000,-500.0,0.00025799,2]
[426590564,1782642644000,-151.0,0.00025799,2]
[426590567,1782642644000,-154.69729,0.00025799,2]
[426590569,1782642644000,-190.309395,0.00025799,2]
[426590571,1782642644000,-467.3153287,0.00025799,2]
[426590561,1782642644000,-666.0,0.00025799,2]
[426590562,1782642644000,-171.854096,0.00025799,2]
[426590568,1782642644000,-190.309395,0.00025799,2]
[426590553,1782642644000,-152.07458994,0.00025472,3]
[426590572,1782642644000,-190.309395,0.00025799,2]
[426590574,1782642644000,-1000.0,0.00025799,2]
[426590576,1782642644000,-1000.0,0.00025799,2]
[426590578,1782642644000,-1000.0,0.00025799,2]
[426590577,1782642644000,-1000.0,0.00025799,2]
[426590573,1782642644000,-190.309395,0.00025799,2]
[426590579,1782642644000,-1000.0,0.00025799,2]
[426590581,1782642644000,-1770504.63650216,0.000258,2]
[426590580,1782642644000,-1000.0,0.00025799,2]
[426590575,1782642644000,-1000.0,0.00025799,2]
[426590584,1782642644000,-202.1882904,0.000258,2]
[426590582,1782642644000,-151.0,0.000258,2]
[426590535,1782642644000,-151.0,0.00025,2]
[426590565,1782642644000,-151.0,0.00025799,2]
[426590558,1782642644000,-150.0,0.00025675,7]
[426590563,1782642644000,-151.0,0.00025799,2]
[426590556,1782642644000,-169.14680648,0.00025574,2]
[426590526,1782642644000,-151.0,0.00025,2]
[426590554,1782642644000,-170.12052271,0.00025501,2]
[426590534,1782642644000,-151.0,0.00025,2]
[426590525,1782642644000,-540.10966445,0.00025,2]
[426590531,1782642644000,-151.000014,0.00025,2]
[426590528,1782642644000,-151.0,0.00025,2]
[426590530,1782642644000,-151.0,0.00025,2]
[426590529,1782642644000,-263.18234829,0.00025,2]
[426590533,1782642644000,-224.37619867,0.00025,2]
[426590536,1782642644000,-151.0,0.00025,2]
[426590537,1782642644000,-151.0,0.00025,2]
[426590541,1782642644000,-190.309395,0.00025,2]
[426590539,1782642644000,-190.309395,0.00025,2]
[426590544,1782642644000,-154.88213602,0.00025006,2]
[426590532,1782642644000,-1286.621489,0.00025,2]
[426590547,1782642644000,-156.49170547,0.00025008,2]
[426590551,1782642644000,-169.14680648,0.000253,2]
[426590548,1782642644000,-249.0,0.00025021,2]
[426590559,1782642644000,-151.0,0.0002575,2]
[426590550,1782642644000,-3904.08684724,0.00025189,2]
[426590549,1782642644000,-169.14680648,0.00025026,2]
[426590542,1782642644000,-151.0,0.00025,2]
[426590552,1782642644000,-200.0,0.00025322,2]
[426590540,1782642644000,-190.309395,0.00025,2]
[426590543,1782642644000,-190.03930262,0.00025,2]
[426590545,1782642644000,-159.30183207,0.00025006,2]
[426590538,1782642644000,-190.309395,0.00025,2]
[426590546,1782642644000,-367.49774625,0.00025008,2]
[426590625,1782642645000,-2200.0,0.000259,9]
[426590628,1782642645000,-169.14680648,0.00026122,2]
[426590626,1782642645000,-3904.08684724,0.00025944,2]
[426590630,1782642645000,-1092.23828495,0.00026381,7]
[426590632,1782642645000,-192.13411823,0.00026383,2]
[426590631,1782642645000,-344.09007205,0.00026381,7]
[426590621,1782642645000,-217.69774947,0.00025849,2]
[426590624,1782642645000,-239.15028305,0.00025849,2]
[426590622,1782642645000,-312.98341095,0.00025849,2]
[426590623,1782642645000,-223.23932775,0.00025849,2]
[426590613,1782642645000,-309.76427204,0.00025846,2]
[426590615,1782642645000,-220.24494861,0.00025846,2]
[426590627,1782642645000,-150.0,0.00025973,2]
[426590629,1782642645000,-311.29,0.000262,7]
[426590638,1782642645000,-488.06640167,0.00026383,2]
[426590634,1782642645000,-647.71531115,0.00026383,2]
[426590637,1782642645000,-493.86002785,0.00026383,2]
[426590633,1782642645000,-168.62565271,0.00026383,2]
[426590644,1782642645000,-1000.0,0.00026389,2]
[426590636,1782642645000,-347.41723169,0.00026383,2]
[426590646,1782642645000,-1000.0,0.00026389,2]
[426590635,1782642645000,-161.6901563,0.00026383,2]
[426590639,1782642645000,-682.20320134,0.00026383,2]
[426590641,1782642645000,-178.14299332,0.00026383,2]
[426590643,1782642645000,-1000.0,0.00026389,2]
[426590642,1782642645000,-1000.0,0.00026389,2]
[426590640,1782642645000,-213.93700208,0.00026383,2]
[426590612,1782642645000,-157.64497417,0.00025846,2]
[426590645,1782642645000,-1000.0,0.00026389,2]
[426590616,1782642645000,-158.3862127,0.00025846,2]
[426590589,1782642645000,-190.309395,0.000258,2]
[426590618,1782642645000,-169.14680648,0.00025848,2]
[426590648,1782642645000,-1000.0,0.00026389,2]
[426590595,1782642645000,-244.03320084,0.00025823,2]
[426590586,1782642645000,-151.0,0.000258,2]
[426590591,1782642645000,-190.309395,0.000258,2]
[426590585,1782642645000,-151.0,0.000258,2]
[426590592,1782642645000,-431.81020743,0.00025823,2]
[426590590,1782642645000,-190.309395,0.000258,2]
[426590593,1782642645000,-204.72374301,0.00025823,2]
[426590587,1782642645000,-180.002584,0.000258,2]
[426590588,1782642645000,-190.309395,0.000258,2]
[426590594,1782642645000,-329.24001857,0.00025823,2]
[426590596,1782642645000,-547.31483305,0.00025823,2]
[426590598,1782642645000,-382.76135371,0.00025829,2]
[426590600,1782642645000,-164.41211918,0.0002583,2]
[426590617,1782642645000,-229.44427417,0.00025846,2]
[426590607,1782642645000,-168.38218232,0.0002583,2]
[426590599,1782642645000,-389.79457495,0.0002583,2]
[426590602,1782642645000,-161.97553038,0.0002583,2]
[426590597,1782642645000,-454.80213423,0.00025823,2]
[426590603,1782642645000,-297.60429694,0.0002583,2]
[426590605,1782642645000,-457.30538147,0.0002583,2]
[426590604,1782642645000,-214.07200705,0.0002583,2]
[426590606,1782642645000,-162.80269658,0.0002583,2]
[426590609,1782642645000,-641.75505501,0.0002583,2]
[426590620,1782642645000,-551.24661937,0.00025849,2]
[426590610,1782642645000,-500.0,0.00025836,2]
[426590608,1782642645000,-163.25019002,0.0002583,2]
[426590619,1782642645000,-221.02762713,0.00025849,2]
[426590611,1782642645000,-163.12182885,0.00025846,2]
[426590614,1782642645000,-318.60366414,0.00025846,2]
[426590601,1782642645000,-173.5116854,0.0002583,2]
[426590650,1782642645000,-1000.0,0.00026389,2]
[426590658,1782642645000,-1000.0,0.00026389,2]
[426590647,1782642645000,-1000.0,0.00026389,2]
[426590682,1782642645000,-1000.0,0.00026389,2]
[426590684,1782642645000,-1000.0,0.00026389,2]
[426590688,1782642645000,-1000.0,0.00026389,2]
[426590698,1782642645000,-1000.0,0.00026389,2]
[426590689,1782642645000,-1000.0,0.00026389,2]
[426590699,1782642645000,-1000.0,0.00026389,2]
[426590690,1782642645000,-1000.0,0.00026389,2]
[426590687,1782642645000,-1000.0,0.00026389,2]
[426590691,1782642645000,-1000.0,0.00026389,2]
[426590694,1782642645000,-1000.0,0.00026389,2]
[426590693,1782642645000,-1000.0,0.00026389,2]
[426590695,1782642645000,-1000.0,0.00026389,2]
[426590696,1782642645000,-1000.0,0.00026389,2]
[426590692,1782642645000,-1000.0,0.00026389,2]
[426590697,1782642645000,-1000.0,0.00026389,2]
[426590706,1782642645000,-1000.0,0.00026389,2]
[426590704,1782642645000,-1000.0,0.00026389,2]
[426590702,1782642645000,-1000.0,0.00026389,2]
[426590700,1782642645000,-1000.0,0.00026389,2]
[426590705,1782642645000,-1000.0,0.00026389,2]
[426590703,1782642645000,-1000.0,0.00026389,2]
[426590701,1782642645000,-1000.0,0.00026389,2]
[426590707,1782642645000,-1000.0,0.00026389,2]
[426590709,1782642645000,-1000.0,0.00026389,2]
[426590710,1782642645000,-1000.0,0.00026389,2]
[426590712,1782642645000,-1000.0,0.00026389,2]
[426590708,1782642645000,-1000.0,0.00026389,2]
[426590713,1782642645000,-1000.0,0.00026389,2]
[426590649,1782642645000,-1000.0,0.00026389,2]
[426590676,1782642645000,-1000.0,0.00026389,2]
[426590680,1782642645000,-1000.0,0.00026389,2]
[426590711,1782642645000,-1000.0,0.00026389,2]
[426590677,1782642645000,-1000.0,0.00026389,2]
[426590678,1782642645000,-1000.0,0.00026389,2]
[426590652,1782642645000,-1000.0,0.00026389,2]
[426590655,1782642645000,-1000.0,0.00026389,2]
[426590656,1782642645000,-1000.0,0.00026389,2]
[426590651,1782642645000,-1000.0,0.00026389,2]
[426590660,1782642645000,-1000.0,0.00026389,2]
[426590659,1782642645000,-1000.0,0.00026389,2]
[426590657,1782642645000,-1000.0,0.00026389,2]
[426590654,1782642645000,-1000.0,0.00026389,2]
[426590662,1782642645000,-1000.0,0.00026389,2]
[426590663,1782642645000,-1000.0,0.00026389,2]
[426590667,1782642645000,-1000.0,0.00026389,2]
[426590661,1782642645000,-1000.0,0.00026389,2]
[426590672,1782642645000,-1000.0,0.00026389,2]
[426590653,1782642645000,-1000.0,0.00026389,2]
[426590673,1782642645000,-1000.0,0.00026389,2]
[426590664,1782642645000,-1000.0,0.00026389,2]
[426590686,1782642645000,-1000.0,0.00026389,2]
[426590679,1782642645000,-1000.0,0.00026389,2]
[426590681,1782642645000,-1000.0,0.00026389,2]
[426590675,1782642645000,-1000.0,0.00026389,2]
[426590668,1782642645000,-1000.0,0.00026389,2]
[426590683,1782642645000,-1000.0,0.00026389,2]
[426590669,1782642645000,-1000.0,0.00026389,2]
[426590670,1782642645000,-1000.0,0.00026389,2]
[426590666,1782642645000,-1000.0,0.00026389,2]
[426590674,1782642645000,-1000.0,0.00026389,2]
[426590685,1782642645000,-1000.0,0.00026389,2]
[426590665,1782642645000,-1000.0,0.00026389,2]
[426590671,1782642645000,-1000.0,0.00026389,2]
[426590752,1782642646000,-435.39549895,0.0002641,2]
[426590742,1782642646000,-232.43836742,0.00026397,2]
[426590760,1782642646000,-200.0,0.00026585,2]
[426590757,1782642646000,-478.3005661,0.0002641,2]
[426590759,1782642646000,-883.59051033,0.00026456,7]
[426590748,1782642646000,-316.7724254,0.00026407,2]
[426590747,1782642646000,-440.48989722,0.00026407,2]
[426590750,1782642646000,-442.05525426,0.0002641,2]
[426590751,1782642646000,-734.9954925,0.0002641,2]
[426590754,1782642646000,-469.47511642,0.0002641,2]
[426590755,1782642646000,-446.47865549,0.0002641,2]
[426590749,1782642646000,-458.88854835,0.00026407,2]
[426590762,1782642646000,-169.14680648,0.0002667,2]
[426590763,1782642646000,-1909.34123619,0.0002668,7]
[426590761,1782642646000,-1403.22514394,0.00026614,7]
[426590766,1782642646000,-3904.08684724,0.000267,2]
[426590764,1782642646000,-202.1882904,0.000267,2]
[426590769,1782642646000,-1083.97389531,0.00026799,10]
[426590771,1782642646000,-1321996.91044118,0.000268,2]
[426590767,1782642646000,-16635.0,0.00026767,2]
[426590772,1782642646000,-291401.80620534,0.000268,2]
[426590765,1782642646000,-13180.25101397,0.000267,2]
[426590768,1782642646000,-201.92253622,0.0002679,2]
[426590739,1782642646000,-836.25874408,0.0002639,2]
[426590770,1782642646000,-1083.97389531,0.00026799,10]
[426590753,1782642646000,-336.76436465,0.0002641,2]
[426590743,1782642646000,-433.27366953,0.00026407,2]
[426590723,1782642646000,-150.15622716,0.0002639,2]
[426590738,1782642646000,-704.15957644,0.0002639,2]
[426590774,1782642646000,-151.0,0.000268,2]
[426590715,1782642646000,-496.0142571,0.00026389,2]
[426590720,1782642646000,-189.37706564,0.0002639,2]
[426590718,1782642646000,-179.63454871,0.0002639,2]
[426590714,1782642646000,-1000.0,0.00026389,2]
[426590719,1782642646000,-163.41771223,0.0002639,2]
[426590728,1782642646000,-347.0233708,0.0002639,2]
[426590729,1782642646000,-323.95106077,0.0002639,2]
[426590721,1782642646000,-313.96328628,0.0002639,2]
[426590726,1782642646000,-584.69186243,0.0002639,2]
[426590732,1782642646000,-819.43952927,0.0002639,2]
[426590733,1782642646000,-609.74050863,0.0002639,2]
[426590744,1782642646000,-326.24365769,0.00026407,2]
[426590722,1782642646000,-156.71264063,0.0002639,2]
[426590724,1782642646000,-163.51946772,0.0002639,2]
[426590725,1782642646000,-409.44748602,0.0002639,2]
[426590730,1782642646000,-595.20859388,0.0002639,2]
[426590731,1782642646000,-713.31285233,0.0002639,2]
[426590735,1782642646000,-326.50038005,0.0002639,2]
[426590736,1782642646000,-407.19534681,0.0002639,2]
[426590745,1782642646000,-464.64640806,0.00026407,2]
[426590734,1782642646000,-325.60539317,0.0002639,2]
[426590737,1782642646000,-776.57943108,0.0002639,2]
[426590746,1782642646000,-477.90549621,0.00026407,2]
[426590740,1782642646000,-855.67340668,0.0002639,2]
[426590741,1782642646000,-169.14680648,0.00026396,2]
[426590727,1782642646000,-328.82423837,0.0002639,2]
[426590784,1782642646000,-2013.0,0.000269,2]
[426590717,1782642646000,-574.14203056,0.00026389,2]
[426590785,1782642646000,-400.0,0.000269,9]
[426590806,1782642646000,-151.0,0.00027397,2]
[426590808,1782642646000,-151.0,0.00027397,2]
[426590810,1782642646000,-260.0,0.00027397,9]
[426590813,1782642646000,-353.47,0.000274,7]
[426590811,1782642646000,-200.09,0.00027397,9]
[426590817,1782642646000,-541.66667,0.000276,2]
[426590818,1782642646000,-3364.04058556,0.00027776,2]
[426590809,1782642646000,-190.973473,0.00027397,2]
[426590816,1782642646000,-500.0,0.000275,7]
[426590815,1782642646000,-311.29,0.000275,7]
[426590812,1782642646000,-154.95891162,0.00027397,7]
[426590814,1782642646000,-541.66666,0.000274,2]
[426590803,1782642646000,-869.02,0.00027397,10]
[426590819,1782642646000,-541.66667,0.000278,2]
[426590832,1782642646000,-150.0,0.00028504,10]
[426590821,1782642646000,-537.82579092,0.00027958,2]
[426590825,1782642646000,-234.9513164,0.00028231,2]
[426590824,1782642646000,-15000.0,0.000282,2]
[426590826,1782642646000,-21108.1001178,0.00028231,2]
[426590823,1782642646000,-1172.22,0.0002816,2]
[426590829,1782642646000,-500.0,0.0002837,2]
[426590827,1782642646000,-40869.352923,0.00028246,2]
[426590830,1782642646000,-190.70291039,0.0002837,2]
[426590831,1782642646000,-500.0,0.00028504,10]
[426590828,1782642646000,-1492.51,0.00028364,7]
[426590773,1782642646000,-541.66666,0.000268,2]
[426590822,1782642646000,-700.0,0.00027969,2]
[426590802,1782642646000,-446.39,0.00027397,2]
[426590820,1782642646000,-3570.573,0.00027886,2]
[426590804,1782642646000,-1657.16,0.00027397,10]
[426590775,1782642646000,-151.0,0.000268,2]
[426590801,1782642646000,-241.71,0.00027397,2]
[426590776,1782642646000,-151.0,0.000268,2]
[426590780,1782642646000,-190.309395,0.000268,2]
[426590779,1782642646000,-190.309395,0.000268,2]
[426590783,1782642646000,-576.38632781,0.00026831,7]
[426590777,1782642646000,-190.309395,0.000268,2]
[426590782,1782642646000,-569.94856867,0.00026807,7]
[426590781,1782642646000,-235.07122084,0.000268,2]
[426590786,1782642646000,-169.14680648,0.00026944,2]
[426590789,1782642646000,-170.94129522,0.00026961,2]
[426590790,1782642646000,-883.59051033,0.00026977,7]
[426590788,1782642646000,-880.19947055,0.0002695,2]
[426590778,1782642646000,-190.309395,0.000268,2]
[426590807,1782642646000,-151.0,0.00027397,2]
[426590794,1782642646000,-160.72,0.00027115,2]
[426590791,1782642646000,-541.66667,0.00027,2]
[426590792,1782642646000,-3026.28752786,0.00027045,2]
[426590793,1782642646000,-213.45272204,0.00027115,2]
[426590795,1782642646000,-453.41,0.00027123,7]
[426590796,1782642646000,-541.66667,0.000272,2]
[426590798,1782642646000,-2536.37735725,0.0002722,2]
[426590797,1782642646000,-169.14680649,0.00027218,2]
[426590800,1782642646000,-600.26462666,0.00027397,2]
[426590787,1782642646000,-762.17563579,0.0002695,2]
[426590799,1782642646000,-209.80930831,0.00027397,2]
[426590805,1782642646000,-1380.97,0.00027397,10]
[426590871,1782642647000,-190.309395,0.00029401,7]
[426590874,1782642647000,-190.309391,0.00029401,7]
[426590864,1782642647000,-1000.0,0.000293,2]
[426590876,1782642647000,-1277.0,0.00029401,2]
[426590883,1782642647000,-453.41,0.00029684,7]
[426590882,1782642647000,-1020.0,0.00029683,30]
[426590862,1782642647000,-311.29,0.000291,7]
[426590865,1782642647000,-317.0,0.000293,2]
[426590869,1782642647000,-151.0,0.00029401,7]
[426590866,1782642647000,-310.0,0.000293,2]
[426590873,1782642647000,-190.309395,0.00029401,7]
[426590872,1782642647000,-190.309395,0.00029401,7]
[426590875,1782642647000,-383.0,0.00029401,2]
[426590889,1782642647000,-1278.0,0.00029684,30]
[426590877,1782642647000,-1361.0,0.00029401,2]
[426590880,1782642647000,-158.0,0.00029683,30]
[426590878,1782642647000,-1230.0,0.00029401,2]
[426590879,1782642647000,-167.0,0.00029683,30]
[426590884,1782642647000,-205.0,0.00029684,30]
[426590894,1782642647000,-170.1,0.00029733,3]
[426590888,1782642647000,-244.0,0.00029684,30]
[426590890,1782642647000,-214.0,0.00029684,30]
[426590887,1782642647000,-286.0,0.00029684,30]
[426590886,1782642647000,-522.0,0.00029684,30]
[426590891,1782642647000,-179.0,0.00029684,30]
[426590885,1782642647000,-152.0,0.00029684,30]
[426590868,1782642647000,-151.0,0.00029401,7]
[426590881,1782642647000,-860.0,0.00029683,30]
[426590870,1782642647000,-151.0,0.00029401,7]
[426590843,1782642647000,-167.0,0.00028683,30]
[426590860,1782642647000,-160.0,0.00029,2]
[426590833,1782642647000,-502.4171781,0.00028504,10]
[426590839,1782642647000,-150.0,0.00028504,10]
[426590845,1782642647000,-860.0,0.00028683,30]
[426590836,1782642647000,-150.0,0.00028504,10]
[426590834,1782642647000,-150.0,0.00028504,10]
[426590838,1782642647000,-150.0,0.00028504,10]
[426590840,1782642647000,-154.06199172,0.00028504,10]
[426590844,1782642647000,-158.0,0.00028683,30]
[426590842,1782642647000,-245.45306983,0.00028504,10]
[426590835,1782642647000,-166.0,0.00028504,10]
[426590837,1782642647000,-245.32085908,0.00028504,10]
[426590841,1782642647000,-150.0,0.00028504,10]
[426590849,1782642647000,-522.0,0.00028684,30]
[426590867,1782642647000,-793.11552357,0.00029378,2]
[426590853,1782642647000,-214.0,0.00028684,30]
[426590858,1782642647000,-1001.8,0.00029,2]
[426590857,1782642647000,-353.47,0.00029,7]
[426590846,1782642647000,-1020.0,0.00028683,30]
[426590852,1782642647000,-1278.0,0.00028684,30]
[426590850,1782642647000,-286.0,0.00028684,30]
[426590848,1782642647000,-152.0,0.00028684,30]
[426590855,1782642647000,-866.9132288,0.00028879,2]
[426590847,1782642647000,-205.0,0.00028684,30]
[426590851,1782642647000,-244.0,0.00028684,30]
[426590856,1782642647000,-396.36338625,0.00029,2]
[426590859,1782642647000,-194.2,0.00029,2]
[426590863,1782642647000,-2000.0,0.00029268,7]
[426590861,1782642647000,-170.94129522,0.00029022,2]
[426590854,1782642647000,-179.0,0.00028684,30]
[426590893,1782642647000,-2536.37735725,0.00029727,2]
[426590897,1782642647000,-5987.96009202,0.000299,2]
[426590895,1782642647000,-5987.96009217,0.000299,2]
[426590929,1782642647000,-15000.0,0.0003,2]
[426590932,1782642647000,-199.5,0.00030021,30]
[426590930,1782642647000,-155.71,0.00030001,30]
[426590931,1782642647000,-155.64,0.00030001,30]
[426590933,1782642647000,-155.71,0.00030036,2]
[426590934,1782642647000,-155.64,0.00030036,2]
[426590937,1782642647000,-1172.22,0.000301,2]
[426590941,1782642647000,-155.64,0.00030106,30]
[426590940,1782642647000,-155.71,0.00030106,30]
[426590936,1782642647000,-155.64,0.00030071,7]
[426590935,1782642647000,-155.71,0.00030071,7]
[426590943,1782642647000,-150.26800483,0.00030137,2]
[426590939,1782642647000,-15000.0,0.000301,2]
[426590928,1782642647000,-14999.99,0.0003,2]
[426590938,1782642647000,-20841.35218968,0.000301,7]
[426590942,1782642647000,-446.39,0.00030137,2]
[426590946,1782642647000,-155.64,0.00030141,2]
[426590956,1782642647000,-155.64,0.00030211,30]
[426590945,1782642647000,-155.71,0.00030141,2]
[426590952,1782642647000,-15000.0,0.000302,2]
[426590948,1782642647000,-155.71,0.00030176,7]
[426590950,1782642647000,-1171.12,0.00030185,30]
[426590947,1782642647000,-150.26800429,0.00030149,3]
[426590949,1782642647000,-155.64,0.00030176,7]
[426590892,1782642647000,-1360.07747436,0.000297,5]
[426590955,1782642647000,-155.71,0.00030211,30]
[426590951,1782642647000,-150.26800429,0.00030185,5]
[426590954,1782642647000,-1099.74,0.00030207,30]
[426590944,1782642647000,-182.22,0.00030137,30]
[426590926,1782642647000,-559.45,0.0003,2]
[426590953,1782642647000,-311.29,0.000302,7]
[426590925,1782642647000,-366.88,0.0003,2]
[426590927,1782642647000,-4743.5,0.0003,2]
[426590907,1782642647000,-5987.96009202,0.000299,2]
[426590905,1782642647000,-5987.96009202,0.000299,2]
[426590896,1782642647000,-5987.96009202,0.000299,2]
[426590900,1782642647000,-5987.96009202,0.000299,2]
[426590898,1782642647000,-5987.96009202,0.000299,2]
[426590899,1782642647000,-5987.96009202,0.000299,2]
[426590903,1782642647000,-5987.96009202,0.000299,2]
[426590908,1782642647000,-5987.96009202,0.000299,2]
[426590901,1782642647000,-5987.96009202,0.000299,2]
[426590902,1782642647000,-5987.96009202,0.000299,2]
[426590904,1782642647000,-5987.96009202,0.000299,2]
[426590906,1782642647000,-5987.96009202,0.000299,2]
[426590910,1782642647000,-5987.96009202,0.000299,2]
[426590909,1782642647000,-5987.96009202,0.000299,2]
[426590915,1782642647000,-155.71,0.00029931,2]
[426590918,1782642647000,-155.71,0.00029966,7]
[426590921,1782642647000,-532.07479451,0.0003,2]
[426590922,1782642647000,-840.34,0.0003,2]
[426590911,1782642647000,-5987.96009202,0.000299,2]
[426590916,1782642647000,-155.64,0.00029931,2]
[426590924,1782642647000,-189.81,0.0003,2]
[426590913,1782642647000,-5987.96009202,0.000299,2]
[426590917,1782642647000,-201.18,0.00029932,7]
[426590912,1782642647000,-5987.96009202,0.000299,2]
[426590923,1782642647000,-1280.82,0.0003,2]
[426590914,1782642647000,-5987.96009202,0.000299,2]
[426590919,1782642647000,-155.64,0.00029966,7]
[426590920,1782642647000,-205765.0,0.0003,7]
[426590987,1782642648000,-155.71,0.00030491,7]
[426590997,1782642648000,-155.71,0.00030526,30]
[426590991,1782642648000,-301.09848504,0.000305,7]
[426590983,1782642648000,-182.22,0.00030441,30]
[426590986,1782642648000,-1171.12,0.00030478,2]
[426590992,1782642648000,-300.0,0.00030507,30]
[426590984,1782642648000,-155.71,0.00030456,2]
[426590994,1782642648000,-300.0,0.00030507,30]
[426590993,1782642648000,-300.0,0.00030507,7]
[426590998,1782642648000,-155.64,0.00030526,30]
[426590995,1782642648000,-170.67446228,0.00030507,7]
[426590988,1782642648000,-155.64,0.00030491,7]
[426591001,1782642648000,-150.26800429,0.00030572,10]
[426590996,1782642648000,-1640.47,0.00030513,2]
[426590999,1782642648000,-155.71,0.00030561,2]
[426591002,1782642648000,-1171.12,0.00030625,30]
[426591003,1782642648000,-1099.74,0.0003064,30]
[426591004,1782642648000,-1640.47,0.00030655,30]
[426591007,1782642648000,-860.0,0.00030683,30]
[426591013,1782642648000,-244.0,0.00030684,30]
[426591006,1782642648000,-158.0,0.00030683,30]
[426591009,1782642648000,-205.0,0.00030684,30]
[426591011,1782642648000,-522.0,0.00030684,30]
[426590990,1782642648000,-1046.24,0.000305,30]
[426591000,1782642648000,-155.66,0.00030561,2]
[426590989,1782642648000,-1099.74,0.00030495,2]
[426590981,1782642648000,-155.64,0.00030421,30]
[426590982,1782642648000,-150.26800429,0.00030439,8]
[426590957,1782642648000,-1640.47,0.0003023,30]
[426590960,1782642648000,-155.71,0.00030246,2]
[426590959,1782642648000,-150.26800429,0.00030246,6]
[426590966,1782642648000,-5000.0,0.00030294,2]
[426590962,1782642648000,-155.71,0.00030281,7]
[426590965,1782642648000,-5000.0,0.00030294,2]
[426590961,1782642648000,-155.64,0.00030246,2]
[426590968,1782642648000,-155.71,0.00030316,30]
[426590967,1782642648000,-14027.0,0.000303,2]
[426590963,1782642648000,-155.64,0.00030281,7]
[426590958,1782642648000,-680.9526339,0.00030238,7]
[426590985,1782642648000,-155.64,0.00030456,2]
[426590964,1782642648000,-5537.22157218,0.00030294,2]
[426590980,1782642648000,-155.71,0.00030421,30]
[426590971,1782642648000,-1171.12,0.00030331,7]
[426590972,1782642648000,-1099.74,0.00030351,7]
[426590969,1782642648000,-155.64,0.00030316,30]
[426590976,1782642648000,-155.71,0.00030386,7]
[426590974,1782642648000,-155.64,0.00030351,2]
[426590973,1782642648000,-155.71,0.00030351,2]
[426590979,1782642648000,-353.47,0.000304,7]
[426590975,1782642648000,-1640.47,0.00030371,7]
[426590977,1782642648000,-155.64,0.00030386,7]
[426590978,1782642648000,-6283.2130349,0.0003039,2]
[426590970,1782642648000,-150.26800429,0.0003033,7]
[426591005,1782642648000,-167.0,0.00030683,30]
[426591008,1782642648000,-1020.0,0.00030683,30]
[426591015,1782642648000,-214.0,0.00030684,30]
[426591040,1782642648000,-1099.74,0.00031217,7]
[426591042,1782642648000,-1046.24,0.0003125,30]
[426591045,1782642648000,-182.22,0.00031355,30]